bitfinex/quotes_ETHUSD_20220219
["timestamp","ask_amount","ask_price","bid_price","bid_amount"]
[1645269524001,0.67545383,2774.1,2773.9,0.00364911]
[1645269524199,1.05910722,2774.3,2773.9,0.8210483]
[1645269524200,0.67545383,2774.0,2773.9,0.8210483]
[1645269524401,0.67545383,2774.2,2773.9,0.8210483]
[1645269524600,0.67545383,2774.2,2774.0,0.8210483]
[1645269524800,0.67545383,2774.2,2774.1,0.8210483]
[1645269524998,0.67545383,2774.2,2773.9,0.68248234]
[1645269524999,0.67545383,2774.2,2774.0,0.8210483]
[1645269525198,0.67545383,2774.2,2774.1,0.8210483]
[1645269525399,0.67545383,2774.2,2773.9,0.8210483]
[1645269525600,1.57694383,2774.2,2773.9,0.8210483]
[1645269525800,0.67545383,2774.1,2773.8,0.82469741]
[1645269526003,0.67545383,2774.1,2773.9,0.8210483]
[1645269526200,0.67545383,2774.0,2773.9,0.8210483]
[1645269526604,0.67545383,2774.2,2773.9,0.8210483]
[1645269527001,0.90153,2774.1,2773.9,0.8210483]
[1645269528849,0.90154,2774.2,2773.9,0.8210483]
[1645269529055,0.70486899,2774.1,2773.9,0.8210483]
[1645269529251,1.05910722,2774.3,2773.9,0.8210483]
[1645269529252,0.70486899,2774.0,2773.9,0.8210483]
[1645269529653,0.70486899,2774.2,2773.9,0.8210483]
[1645269529854,1.05910722,2774.3,2773.9,0.8210483]
[1645269529855,0.70486899,2774.1,2773.9,0.8210483]
[1645269530056,0.70486899,2774.0,2773.9,0.8210483]
[1645269530254,0.90154,2774.2,2773.9,0.8210483]
[1645269530454,0.70440599,2774.1,2773.9,0.8210483]
[1645269530654,1.60594599,2774.1,2773.9,0.8210483]
[1645269530854,0.90154,2774.1,2773.9,0.8210483]
[1645269531500,0.70443149,2774.0,2773.9,0.8210483]
[1645269532498,1.05910722,2774.3,2773.9,0.8210483]
[1645269533297,1.05910722,2774.3,2774.0,0.90139]
[1645269533499,2.53425203,2774.5,2774.1,0.8210483]
[1645269533500,1.63285203,2774.5,2774.1,0.8210483]
[1645269533697,0.70387544,2774.4,2774.1,0.82469741]
[1645269534000,0.70387544,2774.4,2774.2,0.8210483]
[1645269534399,0.70387544,2774.4,2774.3,0.8210483]
[1645269534599,0.70387544,2774.4,2774.0,0.8210483]
[1645269536045,0.70387544,2774.4,2774.0,1.7224507]
[1645269536252,0.70387544,2774.4,2774.1,0.8210483]
[1645269536447,0.70387544,2774.4,2774.2,0.8210483]
[1645269536657,2.50677544,2774.4,2774.2,0.8210483]
[1645269536847,1.8029,2774.4,2774.3,0.8210483]
[1645269537047,2.50662113,2774.4,2774.3,0.8210483]
[1645269537251,1.60515113,2774.4,2774.3,0.8210483]
[1645269537451,1.60515113,2774.4,2773.9,0.8210483]
[1645269537649,0.90143,2774.4,2774.0,0.82469741]
[1645269537850,0.90143,2774.4,2773.7,3.90248234]
[1645269537851,4.20374075,2774.3,2774.1,0.8210483]
[1645269538052,2.80297,2774.4,2774.1,0.00364911]
[1645269538053,5.10533075,2774.2,2774.1,0.00364911]
[1645269538251,5.10533075,2774.2,2773.8,0.82223058]
[1645269538451,1.1165775,2773.9,2773.8,0.82223058]
[1645269538902,1.1165775,2773.9,2773.6,0.00364911]
[1645269539305,1.1165775,2773.9,2773.6,0.90521141]
[1645269539306,1.3665775,2773.9,2773.6,0.90521141]
[1645269539498,1.3665775,2773.9,2773.7,0.81858147]
[1645269540404,4.40161,2773.8,2773.7,0.81858147]
[1645269540601,0.90161,2773.8,2773.7,0.81858147]
[1645269540800,0.90161,2773.8,2773.5,0.81858147]
[1645269541005,0.90161,2773.8,2773.6,0.81858147]
[1645269541201,0.90161,2773.8,2773.7,0.81858147]
[1645269541507,0.90161,2773.8,2773.5,0.81858147]
[1645269541701,0.90168,2773.7,2773.6,0.81858147]
[1645269542398,0.90168,2773.7,2773.5,0.81858147]
[1645269542848,4.0716564,2773.9,2773.8,0.06832188]
[1645269543046,4.79173481,2773.9,2773.8,0.06832188]
[1645269543248,4.79173481,2773.9,2773.8,0.88690335]
[1645269544453,4.79173481,2773.9,2773.8,0.06832188]
[1645269544648,8.29173481,2773.9,2773.8,0.06832188]
[1645269545348,4.79173481,2773.9,2773.8,0.86972306]
[1645269545751,4.79173481,2773.9,2773.8,0.86987089]
[1645269546501,4.79173481,2773.9,2773.8,0.06832188]
[1645269546698,4.0716175,2773.9,2773.8,0.06832188]
[1645269546897,4.79054547,2773.9,2773.8,0.86956066]
[1645269547103,4.0716175,2773.9,2773.8,0.86956066]
[1645269547699,2.2681875,2773.9,2773.8,0.86956066]
[1645269549505,2.2681875,2773.9,2773.8,0.86942356]
[1645269549707,2.2681875,2773.9,2773.8,0.06832188]
[1645269550142,2.98663356,2773.9,2773.8,0.06832188]
[1645269550346,2.9866219,2773.9,2773.8,0.06832188]
[1645269550944,6.4866219,2773.9,2773.8,0.06832188]
[1645269551344,2.9866219,2773.9,2773.8,0.06832188]
[1645269551547,6.4866219,2773.9,2773.8,0.06832188]
[1645269554699,2.9866219,2773.9,2773.8,0.06832188]
[1645269556096,6.4866219,2773.9,2773.8,0.06832188]
[1645269556617,2.9866219,2773.9,2773.8,0.06832188]
[1645269557404,6.4866219,2773.9,2773.8,0.06832188]
[1645269558052,2.9866219,2773.9,2773.8,0.06832188]
[1645269559848,6.4866219,2773.9,2773.8,0.06832188]
[1645269563495,6.2366219,2773.9,2773.8,0.06832188]
[1645269565141,2.7366219,2773.9,2773.8,0.06832188]
[1645269566547,2.7366219,2773.9,2773.8,0.87436984]
[1645269568248,6.2366219,2773.9,2773.8,0.87436984]
[1645269568448,2.7366219,2773.9,2773.8,0.87436984]
[1645269569500,6.2366219,2773.9,2773.8,0.87436984]
[1645269570305,6.2366219,2773.9,2773.4,0.00364911]
[1645269570306,9.0,2773.8,2773.4,0.00364911]
[1645269570508,9.0,2773.8,2773.4,0.00597905]
[1645269570509,0.90191,2773.6,2773.4,0.00597905]
[1645269570705,3.5,2773.5,2773.4,0.00597905]
[1645269570902,0.90191,2773.6,2773.4,0.00232994]
[1645269571511,2.7056861,2773.6,2773.3,0.00364911]
[1645269571704,2.7056861,2773.6,2773.4,0.00180575]
[1645269571904,3.5,2773.5,2773.4,0.00180575]
[1645269572504,0.90193,2773.5,2773.4,0.00180575]
[1645269572750,1.02231642,2773.4,2773.0,0.00364911]
[1645269572948,1.02231642,2773.4,2773.3,0.00180578]
[1645269572949,2.82610642,2773.4,2773.3,0.00180578]
[1645269573749,2.82610642,2773.4,2773.0,0.00364911]
[1645269573953,5.53182872,2773.4,2773.0,0.00364911]
[1645269574151,0.90191,2773.3,2773.2,0.00180585]
[1645269574951,0.90191,2773.3,2773.0,0.00364911]
[1645269575151,0.90187,2773.2,2773.0,0.00364911]
[1645269575355,1.80376,2773.2,2773.1,0.00180591]
[1645269576156,1.80376,2773.2,2772.8,0.68613145]
[1645269576394,1.07617293,2772.9,2772.8,0.68613145]
[1645269577298,1.07617293,2772.9,2772.8,0.00364911]
[1645269577495,1.07617293,2772.9,2772.7,1.22600056]
[1645269577696,1.07617293,2772.9,2772.7,1.22792472]
[1645269578497,1.07617293,2772.9,2772.7,2.12979072]
[1645269578696,1.07617293,2772.9,2772.7,2.12786656]
[1645269578895,1.07617293,2772.9,2772.7,2.12979075]
[1645269579096,1.07617293,2772.9,2772.8,0.68248234]
[1645269579097,1.97806293,2772.9,2772.8,0.68248234]
[1645269579497,0.25,2773.1,2772.8,0.68248234]
[1645269579700,0.25,2773.1,2772.8,2.48618444]
[1645269580145,0.25,2773.1,2772.8,2.48808198]
[1645269580857,1.22777149,2773.1,2772.9,0.90183]
[1645269581051,1.22777149,2773.1,2772.9,1.8035986]
[1645269581247,0.25,2773.1,2772.9,1.8035986]
[1645269582251,0.25,2773.1,2772.9,2.7053586]
[1645269582252,1.43323253,2773.1,2772.9,2.7053586]
[1645269582451,1.43323253,2773.1,2772.9,4.51080331]
[1645269582850,4.40179,2773.5,2773.3,0.05138121]
[1645269583053,1.40482419,2773.4,2773.3,0.05138121]
[1645269585002,2.30662419,2773.4,2773.3,0.05138121]
[1645269586000,1.40482419,2773.4,2773.3,0.05138121]
[1645269590447,2.16754079,2773.4,2773.3,0.81549937]
[1645269590850,3.06934079,2773.4,2773.3,0.81549937]
[1645269591255,2.16754079,2773.4,2773.3,0.81549937]
[1645269592100,3.06933079,2773.4,2773.3,0.81549937]
[1645269593600,4.06933079,2773.4,2773.3,0.81549937]
[1645269597454,3.06933079,2773.4,2773.3,0.81549937]
[1645269599517,1.9145066,2773.4,2773.3,0.81549937]
[1645269602518,1.0127166,2773.4,2773.3,0.81549937]
[1645269603162,1.0127166,2773.4,2773.3,1.49798171]
[1645269603163,0.25,2773.4,2773.3,1.49798171]
[1645269603364,0.25,2774.2,2773.7,3.72344764]
[1645269603562,0.75902757,2774.1,2773.8,0.76411816]
[1645269603961,0.75902757,2774.1,2773.8,2.56671816]
[1645269604160,0.75902757,2774.1,2773.9,0.76411816]
[1645269604465,0.75902757,2774.1,2773.9,2.56681136]
[1645269604662,0.75902757,2774.1,2774.0,0.76411816]
[1645269606162,0.75772926,2774.1,2774.0,0.76411816]
[1645269612353,0.25,2774.2,2774.0,0.76411816]
[1645269620557,0.25,2774.2,2773.7,1.01899384]
[1645269620760,0.25,2774.2,2773.8,0.9015071]
[1645269621600,1.15154,2774.2,2773.8,0.9015071]
[1645269623802,0.25,2774.2,2773.8,0.9015071]
[1645269624001,0.93945428,2774.1,2773.8,0.9015071]
[1645269626053,0.93945428,2774.1,2773.8,1.8029771]
[1645269626350,0.93945428,2774.1,2773.9,0.77392904]
[1645269627152,3.5,2774.0,2773.9,0.77392904]
[1645269627356,3.5,2774.0,2773.7,1.01899384]
[1645269627357,0.00116476,2773.9,2773.7,1.01899384]
[1645269627553,0.90175,2773.8,2773.7,1.01899384]
[1645269627755,5.14911938,2773.8,2773.7,1.01899384]
[1645269628154,6.14911938,2773.8,2773.7,1.01899384]
[1645269628356,5.14911938,2773.8,2773.7,1.01899384]
[1645269628752,6.14911938,2773.8,2773.7,1.01899384]
[1645269632512,6.14911938,2773.8,2773.7,1.01770136]
[1645269634757,1.64911938,2773.8,2773.7,1.01770136]
[1645269639308,0.74736938,2773.8,2773.7,1.01770136]
[1645269640351,0.74736938,2773.8,2773.7,1.79150788]
[1645269640650,1.64894938,2773.8,2773.7,1.79150788]
[1645269648560,6.14894938,2773.8,2773.7,1.01770136]
[1645269654405,6.32914938,2773.8,2773.7,1.01770136]
[1645269654805,2.82914938,2773.8,2773.7,1.01770136]
[1645269655257,1.64894938,2773.8,2773.7,1.01770136]
[1645269655452,1.64894938,2773.8,2773.7,1.79200063]
[1645269657553,1.65069026,2773.8,2773.7,1.01676731]
[1645269657755,5.75069026,2773.8,2773.7,1.01676731]
[1645269657955,18.43851202,2773.8,2773.7,1.01676731]
[1645269658154,15.38414852,2773.8,2773.7,1.01676731]
[1645269658351,14.25069026,2773.8,2773.7,1.01676731]
[1645269660001,5.0,2773.7,2773.4,0.00190199]
[1645269660202,2.55277536,2773.6,2773.4,0.00190199]
[1645269660401,0.74911026,2773.5,2773.3,0.05138121]
[1645269660902,4.24911026,2773.5,2773.4,0.00190201]
[1645269661304,7.35279026,2773.5,2773.4,0.00190201]
[1645269661506,7.35279026,2773.5,2773.3,0.05138121]
[1645269661702,5.24911026,2773.4,2773.3,0.05138121]
[1645269661903,5.24911026,2773.4,2772.7,0.00364911]
[1645269661904,20.5,2773.3,2772.9,0.00760944]
[1645269662109,15.57157217,2773.2,2772.9,0.00760944]
[1645269662307,1.65125026,2773.1,2772.9,0.00760944]
[1645269662505,2.01878625,2773.1,2772.9,0.00760944]
[1645269662752,0.3,2773.0,2772.2,0.00777286]
[1645269662952,1.04911026,2773.0,2772.3,0.75551853]
[1645269663152,2.55331026,2772.9,2772.4,0.00364911]
[1645269663355,1.65121026,2772.8,2772.4,0.00364911]
[1645269663554,0.74911026,2772.7,2772.3,0.75551853]
[1645269663753,0.74911026,2772.7,2772.3,0.75916764]
[1645269663954,0.99911026,2772.7,2772.3,0.75916764]
[1645269664260,0.25,2772.7,2772.3,0.69127311]
[1645269664455,0.25,2772.7,2772.4,0.75551853]
[1645269664657,0.25,2772.7,2772.5,0.75574987]
[1645269664856,0.25,2772.7,2772.6,0.75574987]
[1645269665059,0.25,2772.7,2772.4,0.75574987]
[1645269665656,0.90201,2772.6,2772.4,0.75574987]
[1645269666260,0.76947077,2772.5,2772.4,0.75574987]
[1645269666702,1.80405,2772.6,2772.4,0.75807595]
[1645269667299,2.70613,2772.6,2772.4,0.75807595]
[1645269667500,2.70613,2772.6,2772.4,0.75574987]
[1645269668101,3.7373004,2772.6,2772.4,0.75807595]
[1645269668500,2.10336144,2772.6,2772.4,0.75807595]
[1645269668702,2.10336144,2772.6,2772.4,0.75574987]
[1645269668901,1.80422,2772.5,2772.4,0.75574987]
[1645269669100,0.90201,2772.6,2772.4,0.75807595]
[1645269670003,0.90201,2772.6,2772.4,0.75574987]
[1645269670255,1.80405,2772.6,2772.4,0.75807595]
[1645269671255,0.90201,2772.6,2772.4,0.75574987]
[1645269671455,0.90201,2772.6,2772.4,0.75807595]
[1645269671660,0.25,2772.7,2772.4,0.75807595]
[1645269672062,3.75,2773.5,2772.4,0.68995008]
[1645269672063,0.25,2773.4,2772.4,0.68995008]
[1645269672256,0.79884876,2773.3,2772.5,0.75939898]
[1645269672456,0.79884876,2773.3,2772.6,0.75939898]
[1645269672660,0.79884876,2773.3,2772.4,2.491084]
[1645269672661,0.79884876,2773.3,2772.8,1.10876156]
[1645269672960,0.79884876,2773.3,2772.9,1.65749107]
[1645269673160,0.79884876,2773.3,2773.0,0.75574987]
[1645269673360,0.79884876,2773.3,2773.1,0.75574987]
[1645269673561,0.79884876,2773.3,2772.9,0.00364911]
[1645269673759,0.79884876,2773.3,2772.9,0.72812961]
[1645269674005,0.79884876,2773.3,2773.0,0.00232554]
[1645269674205,0.90185,2773.2,2773.0,0.72680604]
[1645269674407,0.79884876,2773.1,2773.0,0.72680604]
[1645269674805,0.79884876,2773.1,2772.6,0.00364911]
[1645269675006,0.79884876,2773.1,2772.6,0.72818006]
[1645269675206,0.79884876,2773.1,2772.9,0.00232562]
[1645269675605,1.70073876,2773.1,2772.9,0.00232562]
[1645269675805,0.79884876,2773.0,2772.9,0.72685657]
[1645269676007,0.79884876,2773.0,2772.9,0.72453095]
[1645269676206,0.79884876,2773.0,2772.9,0.72685661]
[1645269676607,0.79884876,2773.0,2772.9,0.00232566]
[1645269676810,0.79884876,2773.0,2772.9,0.72685661]
[1645269677217,0.79884876,2773.0,2772.9,0.72453095]
[1645269677409,0.79884876,2773.0,2772.8,0.72685666]
[1645269677410,1.70074876,2773.0,2772.8,0.72685666]
[1645269677654,1.84899405,2773.3,2772.9,0.72453095]
[1645269677655,0.94709405,2773.3,2772.9,0.72453095]
[1645269677857,0.79869448,2773.2,2772.9,0.00364911]
[1645269678057,0.79869448,2773.2,2772.8,0.00232571]
[1645269678257,0.9019,2773.1,2772.8,0.00232571]
[1645269678458,1.70059448,2773.0,2772.8,0.7279214]
[1645269678658,0.9019,2773.0,2772.9,0.72659795]
[1645269678860,1.70038463,2773.0,2772.9,0.72659795]
[1645269679458,1.70038463,2773.0,2772.9,0.00232566]
[1645269679660,1.70038463,2773.0,2772.7,0.7279214]
[1645269679868,0.79848463,2772.9,2772.8,0.726598]
[1645269680070,0.94709405,2773.3,2772.8,0.73024711]
[1645269680269,0.79853516,2773.2,2772.9,0.72427229]
[1645269680462,0.79853516,2773.2,2772.9,0.7279214]
[1645269680864,1.70036516,2773.2,2772.9,0.7279214]
[1645269681068,1.70036516,2773.2,2772.9,0.73024702]
[1645269681263,0.79853516,2773.1,2773.0,0.72427229]
[1645269681703,0.79853516,2773.1,2772.9,0.00232562]
[1645269681905,0.79853516,2773.0,2772.8,1.6297014]
[1645269682102,0.94709405,2773.3,2772.9,0.72427229]
[1645269682304,0.79893119,2773.2,2772.9,0.73024706]
[1645269682507,0.79893119,2773.2,2773.0,0.72427229]
[1645269683203,0.79893119,2773.2,2773.0,1.88466635]
[1645269683502,0.79893119,2773.2,2773.1,0.72427229]
[1645269683702,1.70075119,2773.2,2773.1,0.72427229]
[1645269685008,1.70075119,2773.2,2773.0,0.00232554]
[1645269685252,0.79901299,2773.1,2773.0,0.00232554]
[1645269685452,1.70086299,2773.1,2773.0,0.72659783]
[1645269685651,1.70086299,2773.1,2773.0,0.72427229]
[1645269685850,1.70086299,2773.1,2772.9,0.00232562]
[1645269686053,0.79901299,2773.0,2772.9,0.00232562]
[1645269686851,0.79901299,2773.0,2772.8,0.72427229]
[1645269687053,0.79901299,2773.0,2772.8,0.726598]
[1645269687657,2.60277299,2773.0,2772.8,0.726598]
[1645269687853,0.79901299,2772.9,2772.8,0.726598]
[1645269688053,0.79901299,2773.2,2772.8,0.72427229]
[1645269688253,0.79901299,2773.2,2772.8,0.72659804]
[1645269688453,0.79901299,2773.2,2772.8,0.73025044]
[1645269688653,0.79901299,2773.2,2772.9,0.72427229]
[1645269689506,0.79901299,2773.2,2773.0,0.72427229]
[1645269689706,0.90185,2773.1,2772.9,0.00232562]
[1645269689903,0.79901299,2773.0,2772.9,0.00232562]
[1645269690104,1.80377,2773.1,2772.9,0.7272115]
[1645269690308,0.79901299,2773.0,2772.9,0.7272115]
[1645269690505,0.79901299,2773.0,2772.7,0.72488588]
[1645269690704,1.70090299,2773.0,2772.9,0.00232566]
[1645269691206,0.79901299,2773.0,2772.9,0.00232566]
[1645269691404,0.79901299,2773.0,2772.9,0.72721154]
[1645269691605,0.79901299,2773.0,2772.9,0.72488588]
[1645269692206,0.79845041,2773.0,2772.9,0.72488588]
[1645269692406,1.80369,2773.1,2773.0,0.75915886]
[1645269693355,0.90185,2773.1,2773.0,0.75915886]
[1645269693556,0.25,2773.2,2773.0,0.75915886]
[1645269694160,0.25,2773.2,2773.0,1.66091146]
[1645269694362,0.25,2773.2,2773.0,0.76148444]
[1645269694562,0.90079532,2773.1,2773.0,0.76148444]
[1645269695162,0.90079532,2773.1,2773.0,0.75915886]
[1645269698312,4.40079532,2773.1,2773.0,0.75915886]
[1645269699113,5.40079532,2773.1,2773.0,0.75915886]
[1645269700662,6.03656502,2773.1,2773.0,0.75915886]
[1645269702359,17.03656502,2773.1,2773.0,0.75915886]
[1645269703167,6.21676502,2773.1,2773.0,0.75915886]
[1645269704306,17.21676502,2773.1,2773.0,0.75915886]
[1645269704511,16.53099532,2773.1,2773.0,0.75915886]
[1645269704707,17.70124551,2773.1,2773.0,0.75915886]
[1645269705308,6.70124551,2773.1,2773.0,0.75915886]
[1645269705714,18.30124551,2773.1,2773.0,0.75915886]
[1645269705909,18.4814179,2773.1,2773.0,0.75915886]
[1645269707110,7.4814179,2773.1,2773.0,0.75915886]
[1645269707310,6.31116771,2773.1,2773.0,0.75915886]
[1645269707851,18.4814179,2773.1,2773.0,0.75915886]
[1645269708052,19.16882533,2773.1,2773.0,0.75915886]
[1645269708258,7.4814179,2773.1,2773.0,0.75915886]
[1645269708859,8.16881399,2773.1,2773.0,0.75915886]
[1645269709055,19.16881399,2773.1,2773.0,0.75915886]
[1645269709658,7.3012179,2773.1,2773.0,0.75915886]
[1645269710059,6.13096771,2773.1,2773.0,0.75915886]
[1645269710262,6.8182594,2773.1,2773.0,0.75915886]
[1645269710559,6.13096771,2773.1,2773.0,0.75915886]
[1645269710767,17.13096771,2773.1,2773.0,0.75915886]
[1645269711260,18.3012179,2773.1,2773.0,0.75915886]
[1645269712006,3.1379832,2773.1,2773.0,0.75915886]
[1645269712403,3.92969124,2773.1,2773.0,0.75915886]
[1645269712703,2.32969124,2773.1,2773.0,0.75915886]
[1645269712904,3.32969124,2773.1,2773.0,1.49490546]
[1645269713207,17.44250336,2773.1,2773.0,1.49490627]
[1645269713407,18.42969124,2773.1,2773.0,0.75915886]
[1645269713604,19.59994143,2773.1,2773.0,1.49492907]
[1645269713802,19.59994143,2773.1,2773.0,1.49493149]
[1645269714003,19.59994143,2773.1,2773.0,0.75915886]
[1645269714204,19.59994143,2773.1,2773.0,1.49493426]
[1645269714404,19.59994143,2773.1,2773.0,1.49493543]
[1645269714603,19.7621359,2773.1,2773.0,0.75915886]
[1645269714805,19.7621359,2773.1,2773.0,1.49494022]
[1645269715153,8.59994143,2773.1,2773.0,0.75915886]
[1645269715356,7.91275355,2773.1,2773.0,1.49488167]
[1645269715557,3.81275355,2773.1,2773.0,0.75915886]
[1645269715757,2.94250336,2773.1,2773.0,0.75915886]
[1645269715961,3.62969382,2773.1,2773.0,0.75915886]
[1645269716157,2.32969382,2773.1,2773.0,1.49486639]
[1645269716356,3.32969382,2773.1,2773.0,1.49486639]
[1645269716559,2.32969382,2773.1,2773.0,1.49486639]
[1645269716959,1.64250336,2773.1,2773.0,1.49486639]
[1645269717158,2.32969382,2773.1,2773.0,1.49486639]
[1645269717559,6.82969382,2773.1,2773.0,1.49486639]
[1645269717760,6.82969382,2773.1,2773.0,1.49487709]
[1645269717761,7.42969382,2773.1,2773.0,1.49487709]
[1645269717958,7.42969382,2773.1,2773.0,0.75915886]
[1645269718359,7.42969382,2773.1,2773.0,0.70915886]
[1645269718758,3.92969382,2773.1,2773.0,0.70915886]
[1645269720708,7.42969382,2773.1,2773.0,0.70915886]
[1645269721711,3.92969382,2773.1,2773.0,0.70915886]
[1645269722113,7.42969382,2773.1,2773.0,0.70915886]
[1645269722512,8.59994401,2773.1,2773.0,0.70915886]
[1645269722757,3.92969382,2773.1,2773.0,0.70915886]
[1645269722958,7.42969382,2773.1,2773.0,0.70915886]
[1645269723356,3.92969382,2773.1,2773.0,0.70915886]
[1645269723960,3.24250336,2773.1,2773.0,0.70915886]
[1645269724557,3.24250336,2773.1,2773.0,1.44384066]
[1645269728107,6.74250336,2773.1,2773.0,0.70915886]
[1645269728909,7.42985931,2773.1,2773.0,1.443935]
[1645269729109,7.42985931,2773.1,2773.0,0.70915886]
[1645269729306,7.42996706,2773.1,2773.0,1.44406653]
[1645269730151,3.92996706,2773.1,2773.0,1.44406653]
[1645269730555,7.42996706,2773.1,2773.0,1.44406653]
[1645269730752,7.4299132,2773.1,2773.0,1.44406653]
[1645269731353,7.42991857,2773.1,2773.0,1.44406653]
[1645269731556,3.92991857,2773.1,2773.0,1.44406653]
[1645269731956,6.74250336,2773.1,2773.0,1.44406653]
[1645269732355,3.92997422,2773.1,2773.0,1.44406653]
[1645269732854,6.74250336,2773.1,2773.0,0.70915886]
[1645269733457,18.42998178,2773.1,2773.0,0.70915886]
[1645269733658,19.07803293,2773.1,2773.0,0.70915886]
[1645269733901,19.15692703,2773.1,2773.0,0.70915886]
[1645269734704,20.06739378,2773.1,2773.0,0.70915886]
[1645269735106,19.15692703,2773.1,2773.0,0.70915886]
[1645269735310,9.5,2772.9,2772.5,0.00759939]
[1645269735503,0.68734882,2772.7,2772.6,0.72744245]
[1645269735702,0.68734882,2772.7,2772.6,0.73109506]
[1645269735703,1.47905686,2772.7,2772.6,0.73109506]
[1645269735903,1.47905686,2772.7,2772.5,0.00759939]
[1645269736104,1.47905686,2772.7,2772.6,0.72746619]
[1645269736406,1.77154904,2772.4,2772.2,0.00777589]
[1645269736607,0.79170804,2772.3,2772.2,0.00777589]
[1645269736803,0.8007103,2772.3,2772.2,0.73524431]
[1645269737003,0.80071099,2772.3,2772.2,0.73524431]
[1645269737203,0.80071356,2772.3,2772.2,0.73524431]
[1645269737403,0.80049797,2772.3,2772.2,0.73524431]
[1645269737655,1.70273016,2772.3,2772.2,0.73524431]
[1645269738656,2.60500619,2772.3,2772.2,0.73524431]
[1645269738854,1.8044898,2772.3,2772.2,0.73524431]
[1645269739056,2.6050367,2772.3,2772.2,0.73524431]
[1645269739261,0.90223,2772.3,2772.2,0.73524431]
[1645269739462,0.902,2772.6,2772.2,0.73524431]
[1645269739860,0.902,2772.6,2772.3,0.72746842]
[1645269739861,0.80053716,2772.5,2772.3,0.72746842]
[1645269740060,0.80051237,2772.4,2772.2,1.42286831]
[1645269740256,1.80398,2772.6,2772.2,0.00777589]
[1645269740459,0.25,2772.7,2772.2,1.4227054]
[1645269740658,0.25,2772.7,2772.3,1.41492951]
[1645269740861,0.80067876,2772.6,2772.4,1.80362]
[1645269741058,0.25,2772.7,2772.5,0.72730551]
[1645269741259,0.80065803,2772.6,2772.5,0.72730551]
[1645269741510,0.25,2772.9,2772.5,1.59270995]
[1645269741704,0.25,2772.9,2772.6,0.72730551]
[1645269741705,0.80065858,2772.8,2772.6,0.72730551]
[1645269741910,0.80065858,2772.8,2772.6,1.62909551]
[1645269742110,0.80065858,2772.8,2772.7,0.72730551]
[1645269742303,0.80065858,2772.8,2772.6,0.73285232]
[1645269742503,0.80065858,2772.8,2772.7,0.72730551]
[1645269746056,0.80065858,2772.8,2772.3,1.47861372]
[1645269746259,0.80065858,2772.8,2772.2,2.7173248]
[1645269746260,20.5,2772.7,2772.2,0.0117048]
[1645269746458,1.17316477,2772.6,2772.2,0.0117048]
[1645269746658,1.86051359,2772.7,2772.2,0.0117048]
[1645269746858,1.90221,2772.6,2772.2,0.00412375]
[1645269747361,4.46836671,2772.6,2772.2,0.00412375]
[1645269748357,1.804507,2772.5,2772.3,0.00189499]
[1645269748555,1.80453,2772.4,2772.3,0.00189499]
[1645269749206,1.80453,2772.4,2772.2,0.00412375]
[1645269749407,2.7067883,2772.4,2772.2,0.00412375]
[1645269749606,1.80456,2772.3,2772.2,0.00601878]
[1645269749806,0.20850813,2772.3,2772.2,0.00601878]
[1645269750606,0.20850813,2772.3,2772.2,0.00412375]
[1645269752211,0.20850813,2772.3,2771.7,0.00754381]
[1645269752212,9.5,2772.0,2771.6,0.15819126]
[1645269752413,9.5,2772.0,2771.2,0.68766496]
[1645269752414,11.0,2771.8,2771.2,0.68766496]
[1645269752667,0.521,2771.7,2771.1,0.68766496]
[1645269752862,1.25,2771.7,2771.3,0.04149492]
[1645269753060,1.25,2771.7,2771.4,0.98693369]
[1645269753262,2.0549,2771.7,2771.3,0.04149492]
[1645269753460,0.90238,2771.6,2771.5,0.04035807]
[1645269753662,0.90238,2771.6,2771.2,0.04206334]
[1645269753861,1.90238,2771.6,2771.2,0.04206334]
[1645269754058,1.90238,2771.6,2771.1,0.04263176]
[1645269754460,1.80508,2771.5,2771.1,0.04263176]
[1645269754660,1.80497,2771.4,2771.1,0.04263176]
[1645269755861,2.70742,2771.4,2771.1,0.04263176]
[1645269756065,2.7075604,2771.3,2771.1,0.04263176]
[1645269756266,1.80518,2771.2,2771.1,0.04263176]
[1645269756516,2.80518,2771.2,2771.1,0.04263176]
[1645269756713,2.80518,2771.2,2771.0,0.04320019]
[1645269756910,2.80518,2771.2,2771.1,0.0022872]
[1645269757116,4.6104921,2771.2,2771.1,0.0022872]
[1645269757312,3.6104921,2771.2,2771.1,0.04491896]
[1645269757713,3.6104921,2771.2,2771.1,0.04263176]
[1645269757917,4.6104921,2771.2,2771.1,0.04263176]
[1645269758114,4.6104921,2771.2,2771.0,0.04320019]
[1645269758314,3.5,2771.1,2771.0,0.04320019]
[1645269758513,4.6104921,2771.2,2770.8,0.04433703]
[1645269758514,5.5131021,2771.2,2770.8,0.04433703]
[1645269758712,0.90263,2771.0,2770.8,0.04433703]
[1645269760014,0.25,2771.1,2770.8,0.04433703]
[1645269761068,0.25,2771.1,2770.8,0.73200199]
[1645269761567,0.25,2771.1,2770.9,0.04376861]
[1645269761768,0.25,2771.1,2770.9,0.94607561]
[1645269762168,4.40231,2771.7,2771.0,0.04320019]
[1645269762169,4.40228,2771.7,2771.0,0.04320019]
[1645269762368,0.00222924,2772.2,2771.0,0.04320019]
[1645269762369,0.25,2771.6,2771.0,0.04320019]
[1645269762766,0.25,2771.6,2771.2,0.00223029]
[1645269762971,0.25,2771.6,2771.2,0.90442909]
[1645269763173,0.25,2771.6,2771.2,0.00223029]
[1645269763371,1.15236,2771.6,2771.2,0.00223029]
[1645269763770,1.15236,2771.6,2771.0,0.04320019]
[1645269764021,1.15236,2771.6,2771.3,0.00223028]
[1645269764620,0.90238,2771.5,2771.4,0.04092649]
[1645269766031,1.15236,2771.6,2771.4,0.04092649]
[1645269766032,0.25,2771.6,2771.4,0.04092649]
[1645269766225,0.25,2771.6,2771.4,0.56588751]
[1645269766625,0.25,2771.6,2771.5,0.56531909]
[1645269769862,0.07742322,2771.6,2771.5,0.56531909]
[1645269770063,0.07742322,2771.6,2771.5,0.41531909]
[1645269770263,0.07742322,2771.6,2771.5,0.04035807]
[1645269771421,0.07742322,2771.6,2771.4,0.00213931]
[1645269771611,3.68728432,2771.6,2771.5,0.04035807]
[1645269771810,14.68728432,2771.6,2771.5,0.04035807]
[1645269772013,3.68728432,2771.6,2771.5,0.04035807]
[1645269772810,3.68728432,2771.6,2771.4,0.00213931]
[1645269773012,3.68728432,2771.6,2771.5,0.04035807]
[1645269773217,6.28482322,2771.6,2771.5,0.04035807]
[1645269773417,2.78482322,2771.6,2771.5,0.04035807]
[1645269773816,2.78482322,2771.6,2771.4,0.00213755]
[1645269774212,2.78482322,2771.6,2771.5,0.04035807]
[1645269774414,0.07742322,2771.6,2771.5,0.04035807]
[1645269775164,0.07742322,2771.6,2771.4,0.00213755]
[1645269775365,0.07742322,2771.6,2771.5,0.04035807]
[1645269776163,0.07742322,2771.6,2771.4,0.04306404]
[1645269776363,0.07742322,2771.6,2771.5,0.04035807]